bitfinex-derivatives/quotes_SOLF0:USTF0_20260302
["timestamp","ask_amount","ask_price","bid_price","bid_amount"]
[1772467420000,37.52717592,88.973,88.906,9.17022956]
[1772467420199,37.52717592,88.973,88.907,9.17022956]
[1772467420401,37.80623984,89.039,88.908,9.17022956]
[1772467420594,37.80623984,89.024,88.909,9.17022956]
[1772467420791,157.335,88.988,88.91,0.00022956]
[1772467421102,37.80623984,88.975,88.866,19.99752257]
[1772467421304,37.80623984,88.975,88.807,33.01155619]
[1772467421305,37.80578858,88.938,88.823,19.99752257]
[1772467421498,37.80578858,88.938,88.82,28.85857467]
[1772467421797,37.80578858,88.938,88.83,20.264]
[1772467421999,37.80578858,88.938,88.84,62.0]
[1772467422300,37.90796684,88.924,88.86,10.128]
[1772467422603,37.90796684,88.924,88.82,28.85857467]
[1772467422797,10.118,88.955,88.85,28.85857467]
[1772467422996,37.90796684,88.979,88.85,28.85857467]
[1772467423201,37.90796684,88.979,88.88,28.85857467]
[1772467423704,37.90796684,88.979,88.894,0.07487124]
[1772467424204,37.90796684,88.979,88.88,28.85857467]
[1772467424405,195.22767117,89.057,88.88,28.85857467]
[1772467424699,38.01367117,89.046,88.88,28.85857467]
[1772467424904,10.113,88.995,88.926,10.121]
[1772467425295,38.01335656,88.994,88.89,62.0]
[1772467425600,157.242,89.041,88.88,28.85857467]
[1772467425601,38.01335656,88.976,88.88,28.85857467]
[1772467425994,38.01335656,88.959,88.881,10.126]
[1772467426402,38.01335656,88.959,88.85,28.85857467]
[1772467426703,38.01335656,88.959,88.902,10.124]
[1772467426892,37.89358509,89.029,88.88,28.85857467]
[1772467427296,157.245,89.039,88.88,28.85857467]
[1772467427297,37.89323557,88.982,88.88,28.85857467]
[1772467427894,37.92964767,89.008,88.91,28.85857467]
[1772467428302,37.75561364,88.991,88.905,10.123]
[1772467428499,37.75561364,88.991,88.9,62.0]
[1772467428801,37.75561364,88.991,88.88,28.85857467]
[1772467429200,37.75561364,88.991,88.883,20.252]
[1772467429506,37.75561364,88.991,88.927,0.07243483]
[1772467429996,37.75561364,88.991,88.922,10.121]
[1772467430196,37.77430355,88.987,88.912,13.33565496]
[1772467430404,37.77430355,88.987,88.911,10.123]
[1772467430602,37.77430355,88.987,88.912,13.33565496]
[1772467430998,37.77430355,88.987,88.913,13.33565496]
[1772467431201,37.77391363,89.012,88.936,13.33565496]
[1772467431399,37.77391363,89.012,88.941,0.07193947]
[1772467431802,37.77391363,89.012,88.913,13.33565496]
[1772467431999,37.77391363,88.988,88.923,13.33565496]
[1772467432200,37.77391363,88.988,88.928,13.33565496]
[1772467432403,37.82969468,88.985,88.927,13.33565496]
[1772467432799,37.82969468,88.985,88.929,13.33565496]
[1772467432999,37.82969468,88.985,88.93,22.4568467]
[1772467433203,37.82969468,88.985,88.947,0.07296382]
[1772467433404,37.82969468,88.985,88.928,13.33565496]
[1772467433600,157.242,89.041,88.928,13.33565496]
[1772467433601,33.23227074,88.982,88.928,13.33565496]
[1772467433912,33.23227074,88.982,88.917,13.33565496]
[1772467434113,33.23227074,88.982,88.923,13.33565496]
[1772467434406,33.23227074,88.982,88.937,13.33565496]
[1772467434612,33.23227074,88.982,88.938,13.33565496]
[1772467435012,10.113,88.995,88.938,13.33565496]
[1772467435208,33.22081942,88.994,88.922,20.07731195]
[1772467435415,26.87312669,88.95,88.9,20.07731195]
[1772467435608,26.87312669,88.95,88.891,20.07731195]
[1772467435807,26.87312669,88.95,88.887,20.07731195]
[1772467436007,26.87312669,88.937,88.878,20.07731195]
[1772467436304,26.87312669,88.933,88.874,20.07731195]
[1772467436622,26.87312669,88.93,88.873,20.07731195]
[1772467436805,26.87312669,88.93,88.868,20.07731195]
[1772467437001,26.87312669,88.93,88.854,20.07731195]
[1772467437212,26.87312669,88.887,88.829,20.28645624]
[1772467437514,26.87312669,88.887,88.787,15.42178224]
[1772467437713,26.87312669,88.88,88.812,10.134]
[1772467437911,26.87312669,88.88,88.787,15.42178224]
[1772467438309,26.87312669,88.839,88.757,25.05440257]
[1772467439213,26.87312669,88.839,88.771,10.139]
[1772467439413,0.07321411,88.807,88.757,25.05440257]
[1772467439805,37.00412669,88.839,88.769,10.139]
[1772467440212,26.87312669,88.838,88.769,10.139]
[1772467440411,26.87312669,88.838,88.74,62.0]
[1772467440412,26.87312669,88.838,88.749,26.62813435]
[1772467440613,26.87312669,88.838,88.733,25.05440257]
[1772467441019,10.134,88.816,88.733,25.05440257]
[1772467441215,26.87312669,88.816,88.733,25.05440257]
[1772467441718,26.87312669,88.841,88.749,25.05440257]
[1772467442820,26.87312669,88.899,88.761,25.05440257]
[1772467443517,26.87312669,88.868,88.761,25.05440257]
[1772467443916,26.87312669,88.82,88.706,26.62813435]
[1772467444120,26.87312669,88.82,88.705,25.05440257]
[1772467444621,26.87312669,88.82,88.69,28.85857467]
[1772467444622,10.135,88.8,88.72,35.19840257]
[1772467444825,26.87312669,88.8,88.754,0.07256513]
[1772467445018,10.138,88.778,88.691,25.05440257]
[1772467445322,26.87312669,88.8,88.691,25.05440257]
[1772467445323,26.87312669,88.8,88.692,8.85000575]
[1772467445513,26.87312669,88.778,88.693,8.85000575]
[1772467445723,26.87312669,88.778,88.694,8.85000575]
[1772467446019,26.87312669,88.778,88.696,25.05440257]
[1772467446222,26.87312669,88.778,88.698,25.05440257]
[1772467446521,26.87312669,88.778,88.7,25.05440257]
[1772467446817,26.87312669,88.803,88.702,25.05440257]
[1772467447012,26.87312669,88.803,88.703,8.85000575]
[1772467447213,26.87312669,88.803,88.704,8.85000575]
[1772467447416,26.87312669,88.78,88.705,18.99600575]
[1772467447716,26.94669608,88.762,88.706,8.85000575]
[1772467447917,26.87312669,88.76,88.707,8.85000575]
[1772467448215,26.87312669,88.76,88.677,25.05440257]
[1772467448421,26.87312669,88.809,88.679,25.05440257]
[1772467448619,26.87312669,88.809,88.656,157.924]
[1772467448620,26.87312669,88.809,88.691,25.05440257]
[1772467448822,26.87312669,88.809,88.693,25.05440257]
[1772467449011,26.87312669,88.797,88.695,25.05440257]
[1772467449212,26.87312669,88.797,88.711,25.05440257]
[1772467449418,26.87312669,88.869,88.713,25.05440257]
[1772467449617,26.87312669,88.869,88.761,25.05440257]
[1772467449826,26.87312669,88.869,88.762,8.81431933]
[1772467450120,26.87312669,88.869,88.763,8.81431933]
[1772467450422,26.87312669,88.843,88.764,8.81431933]
[1772467450624,26.87312669,88.843,88.766,25.05440257]
[1772467450822,26.87312669,88.909,88.799,10.135]
[1772467451317,26.87312669,88.851,88.8,8.77252921]
[1772467451519,26.87312669,88.851,88.74,25.05440257]
[1772467452211,37.00412669,88.842,88.773,10.138]
[1772467452410,37.00412669,88.842,88.718,157.813]
[1772467452411,26.87312669,88.899,88.787,0.07174427]
[1772467453017,26.87312669,88.863,88.736,25.05440257]
[1772467453227,26.87312669,88.861,88.736,25.05440257]
[1772467453413,26.87312669,88.806,88.736,10.143]
[1772467453823,26.87312669,88.806,88.711,25.05440257]
[1772467454220,26.87312669,88.806,88.745,10.142]
[1772467454521,26.87312669,88.806,88.711,25.05440257]
[1772467454820,26.97104357,88.805,88.711,25.05440257]
[1772467455218,10.138,88.779,88.71,10.146]
[1772467455419,26.97104357,88.805,88.7,19.22107398]
[1772467455622,26.97104357,88.805,88.701,27.78015213]
[1772467455828,10.138,88.78,88.701,27.78015213]
[1772467456021,26.97104357,88.782,88.671,27.78015213]
[1772467456720,26.97104357,88.782,88.674,27.78015213]
[1772467456923,10.139,88.77,88.674,27.78015213]
[1772467457121,37.11004357,88.77,88.674,27.78015213]
[1772467457323,26.97104357,88.77,88.674,27.78015213]
[1772467457524,25.7472299,88.795,88.697,27.91212778]
[1772467458121,25.7472299,88.795,88.731,10.143]
[1772467458319,25.7472299,88.795,88.737,0.07352372]
[1772467458826,10.136,88.794,88.731,10.143]
[1772467459217,25.7472299,88.795,88.731,10.143]
[1772467459628,25.7472299,88.795,88.754,0.07302641]
[1772467460018,25.7472299,88.839,88.754,0.07302641]
[1772467460223,25.7472299,88.839,88.764,10.139]
[1772467460423,25.7472299,88.889,88.78,6.76782856]
[1772467460626,25.7472299,88.858,88.78,6.76782856]
[1772467461826,25.7472299,88.858,88.81,0.07158549]
[1772467462417,35.8742299,88.873,88.81,0.07158549]
[1772467462618,25.7472299,88.873,88.81,0.07158549]
[1772467462823,35.8792299,88.833,88.762,10.14]
[1772467463020,35.8792299,88.833,88.735,27.91212778]
[1772467463021,25.7472299,88.833,88.735,27.91212778]
[1772467463222,25.7472299,88.833,88.71,27.91212778]
[1772467463424,25.7472299,88.833,88.711,36.62563868]
[1772467463625,25.7472299,88.833,88.713,27.91212778]
[1772467463827,25.7472299,88.833,88.715,27.91212778]
[1772467464020,25.7472299,88.899,88.731,27.91212778]
[1772467464222,25.7472299,88.899,88.733,27.91212778]
[1772467464527,25.7472299,88.855,88.783,10.137]
[1772467464724,0.07225539,88.824,88.783,10.137]
[1772467464923,0.07225539,88.824,88.761,27.91212778]
[1772467465123,0.07225539,88.824,88.791,10.136]
[1772467465332,0.07225539,88.824,88.762,27.91212778]
[1772467465527,25.7472299,88.855,88.763,8.70179827]
[1772467465835,25.7472299,88.855,88.765,27.91212778]
[1772467466027,25.7472299,88.855,88.766,8.70179827]
[1772467466228,25.7472299,88.855,88.767,8.70179827]
[1772467466432,25.7472299,88.855,88.797,10.136]
[1772467466647,25.7472299,88.855,88.765,27.91212778]
[1772467466835,25.7472299,88.855,88.767,27.91212778]
[1772467467034,25.7472299,88.855,88.768,8.70255387]
[1772467467235,25.7472299,88.855,88.769,8.70255387]
[1772467467429,25.7472299,88.855,88.77,8.70255387]
[1772467467630,25.7472299,88.855,88.771,8.7036474]
[1772467467934,25.7472299,88.855,88.744,27.91212778]
[1772467468133,25.7472299,88.855,88.761,27.91212778]
[1772467468430,25.7472299,88.855,88.762,36.61403425]
[1772467468626,25.7472299,88.855,88.763,8.70190647]
[1772467469024,10.13,88.85,88.783,10.137]
[1772467469227,25.7472299,88.849,88.783,10.137]
[1772467469429,25.7472299,88.849,88.784,8.70468129]
[1772467469624,25.7472299,88.849,88.785,8.70468129]
[1772467469829,25.7472299,88.849,88.762,27.91212778]
[1772467470132,25.7472299,88.848,88.764,27.91212778]
[1772467470433,25.7472299,88.848,88.765,8.54178705]
[1772467471130,25.7472299,88.848,88.766,27.91212778]
[1772467471330,25.7472299,88.848,88.768,27.91212778]
[1772467471533,25.7472299,88.848,88.77,27.91212778]
[1772467471730,25.7472299,88.848,88.772,27.91212778]
[1772467471930,10.129,88.86,88.774,27.91212778]
[1772467472136,25.7472299,88.871,88.803,10.135]
[1772467472330,25.7472299,88.893,88.805,27.91212778]
[1772467472637,25.7472299,88.928,88.807,27.91212778]
[1772467472838,25.7472299,88.999,88.851,27.91212778]
[1772467473039,19.21333949,89.0,88.851,27.91212778]
[1772467473040,25.7472299,88.981,88.851,27.91212778]
[1772467473232,25.7472299,88.932,88.865,10.128]
[1772467473432,25.7472299,88.932,88.83,19.21333949]
[1772467473433,25.7472299,88.999,88.867,27.91212778]
[1772467473644,25.7472299,88.999,88.869,27.91212778]
[1772467473931,25.7472299,89.005,88.871,27.91212778]
[1772467474140,25.7472299,89.005,88.873,27.91212778]
[1772467474435,25.7472299,88.965,88.875,27.91212778]
[1772467474629,25.7472299,88.965,88.877,27.91212778]
[1772467474939,25.7472299,89.036,88.956,10.117]
[1772467475133,25.7472299,89.036,88.923,27.91212778]
[1772467475331,25.7472299,89.036,88.899,27.91212778]
[1772467475530,25.7472299,89.036,88.9,8.53204205]
[1772467475735,25.7472299,88.996,88.905,13.24869955]
[1772467475933,25.7472299,88.996,88.906,8.53204205]
[1772467476133,25.7472299,88.996,88.907,8.53204205]
[1772467476332,25.7472299,88.996,88.909,10.123]
[1772467476533,25.7472299,88.996,88.91,8.53204205]
[1772467476732,25.7472299,88.996,88.911,8.53204205]
[1772467476933,19.21333949,89.04,88.911,8.53204205]
[1772467476934,25.7472299,88.992,88.911,8.53204205]
[1772467477136,25.7472299,88.992,88.886,27.91212778]
[1772467477333,25.7472299,88.969,88.859,13.24869955]
[1772467477537,25.7472299,88.937,88.85,13.24869955]
[1772467477736,25.7472299,88.937,88.849,27.91212778]
[1772467478041,25.7472299,88.937,88.836,13.24869955]
[1772467478235,25.7472299,88.937,88.828,503.92529312]
[1772467478534,25.7472299,88.923,88.846,10.13]
[1772467478738,25.7472299,88.923,88.828,503.92529312]
[1772467479043,25.7472299,88.923,88.835,27.91212778]
[1772467479339,25.7472299,88.923,88.859,10.129]
[1772467479738,25.7472299,88.923,88.872,10.127]
[1772467479946,19.21333949,88.96,88.841,27.91212778]
[1772467479947,25.7472299,88.948,88.841,27.91212778]
[1772467480431,25.7472299,88.924,88.843,10.13]
[1772467480831,25.7472299,88.924,88.841,27.91212778]
[1772467481130,25.7472299,88.924,88.868,10.128]
[1772467481734,25.7472299,88.924,88.844,27.91212778]
[1772467482136,25.7472299,88.924,88.851,9.98470153]
[1772467482333,25.7472299,88.924,88.847,27.91212778]
[1772467482531,25.7472299,88.924,88.852,27.91212778]
[1772467482751,25.7472299,88.924,88.856,9.98470153]
[1772467483042,25.7472299,88.958,88.858,9.98470153]
[1772467483237,25.7472299,88.958,88.846,27.91212778]
[1772467484038,25.7472299,88.917,88.831,27.91212778]
[1772467484235,25.7472299,88.917,88.836,27.91212778]
[1772467484432,25.7472299,88.917,88.852,10.129]
[1772467484738,25.7472299,88.939,88.853,27.91212778]
[1772467484941,10.12,88.936,88.856,27.91212778]
[1772467485642,25.7472299,88.939,88.859,27.91212778]
[1772467485838,25.7472299,88.939,88.87,9.98784195]
[1772467486043,25.7472299,88.979,88.874,9.98784195]
[1772467486243,25.7472299,88.979,88.873,9.98784195]
[1772467486547,6.748032,88.98,88.851,9.98784195]
[1772467486548,25.7472299,88.948,88.851,9.98784195]
[1772467486838,25.7472299,88.948,88.841,27.91212778]
[1772467487038,10.12,88.936,88.845,27.91212778]
[1772467487243,10.12,88.936,88.853,37.89996973]
[1772467487449,25.7472299,88.948,88.83,51.66318869]
[1772467487450,25.7472299,88.948,88.861,28.79803692]
[1772467487845,25.7472299,88.948,88.872,28.79803692]
[1772467488041,25.7472299,88.948,88.88,16.73587395]
[1772467488244,25.7472299,88.948,88.88,6.748032]
[1772467488447,10.116,88.971,88.893,10.125]
[1772467488740,27.21213606,88.979,88.883,28.79803692]
[1772467488941,27.21213606,88.979,88.887,28.79803692]
[1772467489148,27.21213606,88.979,88.894,10.125]
[1772467489341,27.21213606,88.979,88.897,28.79803692]
[1772467489539,27.21213606,88.979,88.898,8.51964742]
[1772467489843,27.21213606,88.977,88.898,8.51964742]
[1772467490142,27.21213606,88.977,88.871,38.78587887]
[1772467490341,27.21213606,88.95,88.872,8.53718618]
[1772467490647,27.21213606,88.95,88.873,8.54199874]
[1772467490850,27.21213606,88.95,88.857,28.79803692]
[1772467491047,27.21213606,88.95,88.864,9.98784195]
[1772467491244,27.21213606,88.95,88.87,38.78587887]
[1772467491547,27.21213606,88.95,88.882,10.126]
[1772467491745,27.21213606,88.95,88.883,8.54479598]
[1772467491952,27.21213606,88.95,88.884,8.54479598]
[1772467492144,27.21213606,88.95,88.872,28.79803692]
[1772467492145,27.21213606,88.948,88.872,28.79803692]
[1772467492340,27.21213606,88.948,88.873,8.55558587]
[1772467492549,27.21213606,88.948,88.874,8.55558587]
[1772467492849,27.21213606,88.948,88.875,8.55558587]
[1772467493050,27.21213606,88.948,88.876,8.55558587]
[1772467493451,27.21213606,88.926,88.842,10.01660857]
[1772467493747,27.21213606,88.926,88.843,8.56097508]
[1772467493948,10.122,88.917,88.844,8.56097508]
[1772467494145,27.21213606,88.926,88.845,8.56097508]
[1772467494346,10.123,88.909,88.83,87.20925761]
[1772467494542,10.123,88.909,88.831,8.57361917]
[1772467494741,10.123,88.909,88.832,8.57361917]
[1772467494944,10.123,88.909,88.833,8.57361917]
[1772467495149,27.21213606,88.926,88.85,35.54606892]
[1772467495350,27.21213606,88.926,88.852,28.79803692]
[1772467495644,10.123,88.908,88.853,8.57361917]
[1772467495845,10.123,88.908,88.842,10.13]
[1772467496044,10.123,88.908,88.843,8.57430226]
[1772467496241,10.123,88.908,88.844,8.57430226]
[1772467496443,10.124,88.899,88.845,8.57430226]
[1772467496642,27.21213606,88.926,88.846,8.57430226]
[1772467496840,27.21213606,88.926,88.847,8.57430226]
[1772467497050,27.21213606,88.926,88.83,58.41122069]
[1772467497239,27.21213606,88.926,88.831,8.56281565]
[1772467497442,10.124,88.9,88.84,10.131]
[1772467497647,27.21213606,88.926,88.841,8.56281565]
[1772467497951,27.21213606,88.926,88.85,28.79803692]
[1772467498151,27.21213606,88.926,88.852,28.79803692]
[1772467498445,27.21213606,88.926,88.856,28.79803692]
[1772467498651,27.21213606,88.926,88.857,37.36085257]
[1772467498849,27.21213606,88.926,88.858,8.56281565]
[1772467499054,27.21213606,88.92,88.859,8.56281565]
[1772467499253,27.21213606,88.92,88.86,8.56281565]
[1772467499558,10.122,88.915,88.85,6.748032]
[1772467499745,10.122,88.915,88.851,8.55083578]
[1772467499949,10.122,88.915,88.852,8.55083578]
[1772467500145,10.122,88.915,88.854,10.129]
[1772467500354,10.122,88.915,88.855,8.55083578]
[1772467500750,27.21213606,88.949,88.856,8.55083578]
[1772467500953,27.21213606,88.949,88.857,8.55083578]
[1772467501151,10.126,88.883,88.858,0.00083578]
[1772467501454,10.126,88.883,88.834,10.01660857]
[1772467501654,10.126,88.883,88.828,10.01660857]
[1772467501853,10.127,88.875,88.828,10.01660857]
[1772467502055,27.21213606,88.89,88.809,10.01660857]
[1772467502252,27.21213606,88.89,88.807,10.01660857]
[1772467502450,10.129,88.856,88.799,10.01660857]
[1772467502650,27.21213606,88.909,88.81,35.54606892]
[1772467502856,27.21213606,88.909,88.818,10.01660857]
[1772467503055,27.21213606,88.887,88.81,45.56267749]
[1772467503255,27.21213606,88.887,88.811,10.01660857]
[1772467503757,10.127,88.878,88.817,10.01660857]
[1772467503960,27.21213606,88.887,88.821,38.81464549]
[1772467504159,27.21213606,88.922,88.826,10.01660857]
[1772467504352,27.21213606,88.922,88.83,10.01660857]
[1772467504658,10.125,88.887,88.833,10.01660857]
[1772467504852,27.21213606,88.922,88.833,10.01660857]
[1772467505253,27.21213606,88.922,88.835,10.01660857]
[1772467505453,27.21213606,88.894,88.828,0.00060857]
[1772467505760,27.21213606,88.889,88.775,28.79803692]
[1772467506055,27.21213606,88.868,88.775,28.79803692]
[1772467507354,10.134,88.817,88.775,28.79803692]
[1772467507654,27.21213606,88.842,88.75,6.748032]
[1772467508060,10.134,88.816,88.751,10.141]
[1772467508455,27.21213606,88.842,88.752,28.79803692]
[1772467508655,10.132,88.827,88.752,28.79803692]
[1772467508955,27.21213606,88.842,88.752,28.79803692]
[1772467509152,27.21213606,88.814,88.73,6.748032]
[1772467509556,27.21213606,88.814,88.728,28.79803692]
[1772467509952,10.139,88.771,88.72,6.748032]
[1772467510162,27.21213606,88.79,88.705,28.79803692]
[1772467510562,10.137,88.782,88.707,28.79803692]
[1772467510761,27.21213606,88.79,88.707,28.79803692]
[1772467510960,27.21213606,88.79,88.721,28.79803692]
[1772467511263,10.135,88.806,88.723,28.79803692]
[1772467511464,27.21213606,88.805,88.723,28.79803692]
[1772467511760,10.137,88.783,88.72,6.748032]
[1772467511952,27.21213606,88.805,88.701,28.79803692]
[1772467512355,6.748032,88.81,88.701,28.79803692]
[1772467512356,27.21213606,88.78,88.701,28.79803692]
[1772467512550,27.21213606,88.78,88.72,6.76869992]
[1772467512750,27.21213606,88.829,88.72,6.76869992]
[1772467512957,10.136,88.791,88.72,35.56673684]
[1772467513356,10.137,88.782,88.721,8.50610654]
[1772467513561,27.21213606,88.801,88.722,8.50610654]
[1772467513757,27.21213606,88.801,88.723,8.50610654]
[1772467513963,27.21213606,88.801,88.647,157.94]
[1772467513964,27.21213606,88.849,88.78,6.76869992]
[1772467514264,10.131,88.84,88.78,6.76869992]
[1772467514467,27.21213606,88.849,88.781,8.49755403]
[1772467514760,26.98992327,88.822,88.744,29.28859584]
[1772467514964,26.98992327,88.822,88.745,8.49937295]
[1772467515161,26.98992327,88.822,88.746,8.49937295]
[1772467515365,26.98992327,88.822,88.748,29.28859584]
[1772467515554,26.98992327,88.822,88.75,29.28859584]
[1772467515755,6.76869992,88.87,88.761,29.28859584]
[1772467515756,26.98992327,88.869,88.761,29.28859584]
[1772467515958,26.98992327,88.869,88.78,36.05729576]
[1772467516157,26.98992327,88.869,88.782,29.28859584]
[1772467516363,26.98992327,88.869,88.783,37.78796879]
[1772467516556,26.98992327,88.869,88.8,36.05729576]
[1772467516760,26.98992327,88.869,88.802,29.28859584]
[1772467516959,10.123,88.908,88.83,10.132]
[1772467517158,26.98992327,88.909,88.831,8.48038661]
[1772467517364,26.98992327,88.909,88.82,36.05729576]
[1772467517365,26.98992327,88.909,88.832,8.48038661]
[1772467517665,28.24065999,88.887,88.82,29.28859584]
[1772467517865,28.24065999,88.887,88.821,8.48462519]
[1772467518065,28.24065999,88.887,88.822,8.48462519]
[1772467518367,28.24065999,88.887,88.823,8.48462519]
[1772467518662,28.24065999,88.887,88.82,29.28859584]
[1772467518663,28.24065999,88.887,88.824,8.48462519]
[1772467518870,28.24065999,88.887,88.825,8.48462519]
[1772467519168,28.24065999,88.887,88.826,8.48462519]
[1772467519466,28.24065999,88.887,88.78,6.76869992]
[1772467519659,28.24065999,88.879,88.782,28.61581797]
[1772467519856,28.24065999,88.879,88.784,28.61581797]
[1772467520062,10.128,88.865,88.79,10.136]
[1772467520367,28.24065999,88.864,88.791,8.49929095]
[1772467520560,28.24065999,88.864,88.771,10.139]
[1772467520561,10.131,88.843,88.771,10.139]
[1772467520769,28.24065999,88.843,88.772,8.50962022]
[1772467520962,28.24065999,88.843,88.773,8.50962022]
[1772467521160,10.132,88.833,88.774,8.50962022]
[1772467521361,157.513,88.888,88.74,20.12609442]
[1772467521362,28.24065999,88.832,88.74,6.76869992]
[1772467521566,28.24065999,88.832,88.741,8.52600484]
[1772467521763,28.24065999,88.832,88.742,8.52600484]
[1772467521965,157.621,88.827,88.743,4.84e-06]
[1772467522264,10.141,88.75,88.679,28.61581797]
[1772467522461,6.76869992,88.74,88.64,6.76869992]
[1772467522661,28.24065999,88.739,88.64,6.76869992]
[1772467522970,28.24065999,88.739,88.632,28.61581797]
[1772467523571,28.24065999,88.724,88.643,10.153]
[1772467523965,28.24065999,88.759,88.641,28.61581797]
[1772467524166,6.76869992,88.76,88.641,28.61581797]
[1772467524167,10.145,88.718,88.641,28.61581797]
[1772467524466,28.24065999,88.717,88.627,533.53840637]
[1772467524772,10.147,88.697,88.627,533.53840637]
[1772467525071,28.24065999,88.717,88.628,28.61581797]
[1772467525271,10.146,88.709,88.629,10.155]
[1772467525475,28.24065999,88.717,88.63,28.61581797]
[1772467525668,28.24065999,88.717,88.641,28.61581797]
[1772467526372,28.24065999,88.74,88.641,28.61581797]
[1772467526772,35.00935991,88.74,88.627,533.53840637]
[1772467527170,35.00935991,88.74,88.628,28.61581797]
[1772467527372,0.07112775,88.692,88.631,28.61581797]
[1772467527873,28.24065999,88.74,88.631,28.61581797]
[1772467528571,157.819,88.716,88.627,533.53840637]
[1772467528873,28.24065999,88.689,88.583,28.61581797]
[1772467529668,28.24065999,88.689,88.58,6.76869992]
[1772467529669,10.149,88.684,88.597,37.18158143]
[1772467529866,10.149,88.684,88.601,37.18158143]
[1772467530069,10.147,88.697,88.603,37.18158143]
[1772467530267,6.76869992,88.73,88.621,37.28443151]
[1772467530478,6.76869992,88.75,88.621,37.28443151]
[1772467530776,6.76869992,88.76,88.641,37.28443151]
[1772467531672,6.76869992,88.74,88.641,37.28443151]
[1772467532476,6.76869992,88.72,88.617,37.59213666]
[1772467532878,6.76869992,88.76,88.641,37.59213666]
[1772467533072,6.76869992,88.76,88.661,37.59213666]
[1772467533278,6.76869992,88.79,88.681,37.54265594]
[1772467533581,10.141,88.752,88.681,37.54265594]
[1772467533777,157.562,88.86,88.711,37.54265594]
[1772467533975,6.76869992,88.85,88.731,37.54265594]
[1772467534483,6.76869992,88.85,88.758,10.14]
[1772467534783,6.76869992,88.87,88.759,37.5104501]
[1772467534985,6.76869992,88.87,88.761,37.5104501]
[1772467535185,6.76869992,88.87,88.763,37.5104501]
[1772467535386,6.76869992,88.89,88.771,36.66982603]
[1772467535587,6.76869992,88.89,88.77,6.76869992]
[1772467535588,6.76869992,88.89,88.773,36.66982603]
[1772467535789,6.76869992,88.89,88.792,36.66982603]
[1772467536192,6.76869992,88.91,88.794,36.64624692]
[1772467536391,6.76869992,88.91,88.796,36.64624692]
[1772467536589,6.76869992,88.91,88.81,6.76869992]
[1772467536794,6.76869992,88.93,88.811,44.99024045]
[1772467536988,10.124,88.9,88.79,6.76869992]
[1772467537195,6.76869992,88.91,88.791,8.47728625]
[1772467537395,6.76869992,88.93,88.81,6.76869992]
[1772467537599,10.122,88.915,88.826,10.132]
[1772467537798,10.122,88.915,88.827,8.47728625]
[1772467537997,10.122,88.915,88.751,157.754]
[1772467537998,10.125,88.889,88.803,10.135]
[1772467538186,6.76869992,88.91,88.804,8.48280212]
[1772467538393,6.76869992,88.93,88.82,6.76869992]
[1772467538601,6.76869992,88.93,88.821,8.48280212]
[1772467538894,6.76869992,88.93,88.822,8.48280212]
[1772467539095,6.76869992,88.93,88.82,6.76869992]
[1772467539096,6.76869992,88.93,88.824,36.31973992]
[1772467539292,6.76869992,88.91,88.824,36.31973992]
[1772467539692,10.123,88.907,88.824,36.31973992]
[1772467539893,157.326,88.993,88.826,36.06023388]
[1772467540198,6.76869992,88.93,88.841,36.06023388]
[1772467540399,6.76869992,88.95,88.842,44.51902945]
[1772467540600,6.76869992,88.95,88.842,36.04209262]
[1772467540801,6.76869992,88.95,88.844,36.04209262]
[1772467541101,6.76869992,88.93,88.845,36.04209262]
[1772467541296,6.76869992,88.93,88.764,157.715]
[1772467541297,6.76869992,88.96,88.861,35.97813262]
[1772467541494,6.76869992,88.96,88.863,35.97813262]
[1772467541693,10.116,88.957,88.869,35.97813262]
[1772467542098,6.76869992,88.98,88.871,35.97813262]
[1772467542493,157.21,89.051,88.881,35.96083926]
[1772467542699,232.00869992,89.01,88.901,35.96083926]
[1772467542902,6.76869992,88.99,88.901,35.96083926]
[1772467543295,10.111,89.004,88.919,35.63647686]
[1772467543502,6.76869992,88.99,88.892,35.63647686]
[1772467543700,232.00869992,89.01,88.901,35.63647686]
[1772467543893,232.00869992,89.01,88.9,6.76869992]
[1772467543894,10.111,89.005,88.906,35.63647686]
[1772467544096,6.76869992,88.99,88.906,35.63647686]
[1772467544598,225.24,89.01,88.906,35.63647686]
[1772467544599,6.76869992,89.0,88.906,35.63647686]
[1772467544998,10.117,88.957,88.871,35.62253846]
[1772467545190,6.76869992,88.98,88.871,35.62253846]
[1772467545394,6.76869992,88.98,88.873,35.40718207]
[1772467545602,10.115,88.971,88.88,35.40718207]
[1772467546296,10.115,88.971,88.882,35.35973369]
[1772467546500,225.24,89.01,88.882,35.35973369]
[1772467546501,6.76869992,88.97,88.882,35.35973369]
[1772467547297,6.76869992,88.98,88.882,35.35973369]
[1772467547505,6.76869992,88.98,88.917,0.07382805]